Cogmind - Beta 9.4 *** ADVENTURER MODE // 2020.06.16 @ 14:39:02 Player: Scyralis Result: Destroyed by G-34 Mercenary with Small Laser Performance ------------- Evolutions (0) 0 Regions Visited (2) 400 Robots Destroyed (22) 110 Value Destroyed (461) 461 Prototype IDs (0) 0 Alien Tech Used (0) 0 Bonus (0) 0 TOTAL SCORE: 971 Bonus ------- None Cogmind --------- Core Integrity 0/250 Matter 400/400 Energy 96/100 System Corruption 0% Temperature Cool (15) Movement Treading (180) Ox1 Location -10/Mines Parts ------- > --- POWER (1) -------- (None) > --- PROPULSION (2) --- Light Treads > --- UTILITY (2) ------ High-capacity Storage Unit Medium Matter Pod > --- WEAPON (2) ------- Mining Claw > --- INVENTORY (12) --- Ion Engine Light Nuclear Core Improved Heat Sink Medium Battery (200) Signal Interpreter Transport Network Coupler Utility Shielding Light Armor Plating Peak State ------------ > --- POWER ------------ Light Nuclear Core > --- PROPULSION ------- Light Treads Light Treads > --- UTILITY ---------- High-capacity Storage Unit Medium Matter Pod > --- WEAPON ----------- Small Laser Mining Claw > --- INVENTORY -------- Ion Engine Aluminum Leg Improved Heat Sink Medium Storage Unit Medium Battery Signal Interpreter Utility Shielding Light Armor Plating [Rating: 10] Favorites ----------- Power Ion Engine Engine Ion Engine Power Core Light Nuclear Core Propulsion Light Treads Treads Light Treads Utility High-capacity Storage Unit Storage High-capacity Storage Unit Weapon Mining Claw Energy Gun Small Laser Ballistic Gun Light Assault Rifle Slashing Weapon Mining Claw Build | -11 -10 -10 ------- Run | Scr Mat Min Slots Evolved . | . . . Power . | . . . Propulsion . | . . . Utility . | . . . Weapon . | . . . Parts Attached 17 | 6 11 . Power 4 | 1 3 . Engine 3 | 1 2 . Core 1 | . 1 . Reactor . | . . . Propulsion 3 | 2 1 . Treads 3 | 2 1 . Leg . | . . . Wheel . | . . . Hover . | . . . Flight . | . . . Utility 4 | 1 3 . Device . | . . . Storage 4 | 1 3 . Processor . | . . . Hackware . | . . . Protection . | . . . Artifact . | . . . Weapon 6 | 2 4 . Energy Gun 3 | 1 2 . Energy Cannon . | . . . Ballistic Gun 2 | 1 1 . Ballistic Cannon . | . . . Launcher . | . . . Special Weapon . | . . . Impact Weapon . | . . . Slashing Weapon 1 | . 1 . Piercing Weapon . | . . . Special Melee Weapon . | . . . Unidentified Prototypes . | . . . Parts Lost 8 | . 6 2 Power 2 | . 1 1 Propulsion 2 | . 2 . Utility . | . . . Weapon 4 | . 3 1 Highest Loss Streak 3 | . 3 3 Average Slot Usage (%) 92 | . 93 71 Engine 10 | . 10 . Core 2 | . 2 14 Treads 24 | . 24 14 Storage 27 | . 27 28 Energy Gun 8 | . 8 . Ballistic Gun 10 | . 10 . Slashing Weapon 7 | . 7 14 Naked Turns . | . . . Heaviest Build 42 | 13 42 41 Greatest Support 40 | 40 40 20 Greatest Overweight (x) 2 | . 2 2 Average Overweight (x) . | . . 2 Largest Inventory Capacity 12 | 6 12 12 Average Capacity 9 | 5 9 12 Most Carried 9 | 4 9 8 Average Carried 3 | . 4 7 Final Capacity 12 | 6 12 12 Final Carried 8 | . 7 8 Class Distribution -------------------- 100% | Mutant Dominant Class ---------------- Mutant | -10/Materials Mutant | -10/Mines Resources | -11 -10 -10 ----------- Run | Scr Mat Min Matter Collected 572 | 272 300 . Remotely . | . . . Salvage Created 783 | 162 621 . Parts 49 | 8 41 . Haulers Intercepted 1 | . 1 . Recyclers Shooed . | . . . Parts Field Recycled . | . . . Retrieved Matter . | . . . Parts Self-Destructed . | . . . Prevented . | . . . Kills | -11 -10 -10 ------- Run | Scr Mat Min Combat Hostiles Destroyed 13 | . 13 . Melee 2 | . 2 . Guns 11 | . 11 . Classes Destroyed 6 | 2 4 . Worker 2 | . 2 . Tunneler 5 | 3 2 . Hauler 1 | . 1 . Recycler 1 | 1 . . Swarmer 3 | . 3 . Grunt 10 | . 10 . Best Kill Streak 6 | 3 6 . Combat Bots Only 6 | . 6 . Max Kills in Single Turn 3 | 3 1 . Gunslinging . | . . . Exploded . | . . . Melee 1 | . 1 . Uniques/NPCs Destroyed . | . . . Combat | -11 -10 -10 -------- Run | Scr Mat Min Damage Taken 1098 | 6 899 193 Core 251 | . 175 76 Absorbed by Shields . | . . . Core Remaining (%) 100 | 100 . . Volleys Fired 79 | 4 73 2 Largest 2 | 2 2 1 Hottest 60 | 60 60 40 Shots Fired 107 | 8 97 2 Gun 107 | 8 97 2 Cannon . | . . . Launcher . | . . . Special . | . . . Kinetic 55 | 4 51 . Thermal 26 | . 24 2 Explosive . | . . . Electromagnetic 26 | 4 22 . Robot Hit Streak 32 | 5 32 12 Robot Miss Streak 2 | . 2 . Penetration Max . | . . . Secondary Targets 6 | . 6 . Max Gunslinging Chain 1 | . 1 . Shots Hit Robots 99 | 5 87 7 Core Hits 41 | 5 35 1 Critical Hits 1 | . 1 . Critical Kills 1 | . 1 . Critical Parts Destroyed . | . . . Melee Attacks 22 | . 17 5 Impact . | . . . Slashing 22 | . 17 5 Piercing . | . . . Sneak Attacks 1 | . 1 . Combat Hostiles . | . . . Follow-up Attacks . | . . . Damage Inflicted 1400 | 138 1146 116 Guns 997 | 53 922 22 Cannons . | . . . Explosions 119 | 85 34 . Melee 284 | . 190 94 Ramming . | . . . Kinetic 460 | 14 446 . Thermal 350 | 85 243 22 Explosive . | . . . Electromagnetic 306 | 39 267 . Impact . | . . . Slashing 284 | . 190 94 Piercing . | . . . Highest Corruption . | . . . Average Corruption . | . . . Corruption Purged . | . . . Overload Shots . | . . . Overflow Damage 36 | . 36 . Projectiles . | . . . Explosions 4 | . 4 . Melee 32 | . 32 . Knockbacks . | . . . Impact . | . . . Kinetic . | . . . Secondary . | . . . Self-Inflicted Damage 31 | 7 24 . Shots 2 | 1 1 . Rammed . | . . . Targets Rammed . | . . . Kicked . | . . . Crushed . | . . . Highest Temperature 222 | 20 222 13 Average Temperature 54 | 14 59 8 Received Heat Transfer 684 | . 543 141 Effects 1 | . 1 . Energy Bleed 1 | . 1 . Siege Activations . | . . . Robots Corrupted . | . . . Combat Hostiles . | . . . Parts Fried 2 | . 2 . Impact Corruptions . | . . . Robots Melted . | . . . Combat Hostiles . | . . . Parts Melted . | . . . Heat Transferred 625 | 50 525 50 Parts Sabotaged . | . . . Parts Stolen . | . . . Parts Stripped . | . . . Power Chain Reactions 2 | 1 1 . Missiles Intercepted . | . . . Alert | -11 -10 -10 ------- Run | Scr Mat Min Peak Influence 245 | 20 245 15 Average Influence 100 | 6 113 5 Maximum Alert Level 1 | . 1 . Low Security (%) 77 | 100 74 100 Level 1 22 | . 25 . Level 2 . | . . . Level 3 . | . . . Level 4 . | . . . Level 5 . | . . . High Security . | . . . Max Security . | . . . Squads Dispatched 3 | . 3 . Investigation 3 | . 3 . Extermination . | . . . Reinforcement . | . . . Assault . | . . . Garrison . | . . . Intercept . | . . . Construction Impeded . | . . . Haulers Reinforced . | . . . Stealth | -11 -10 -10 --------- Run | Scr Mat Min Distress Signals . | . . . Communications Jammed . | . . . Distress Signals . | . . . Times Spotted 24 | . 22 2 Peak Tracking Total 5 | . 5 2 Tactical Retreats 2 | . 2 . Traps | -11 -10 -10 ------- Run | Scr Mat Min Traps Triggered 1 | . 1 . Indirectly . | . . . Trap Hack Attempts . | . . . Triggered . | . . . Disarmed . | . . . Reprogrammed . | . . . Reused . | . . . Traps Extracted . | . . . Installed . | . . . Triggered . | . . . Machines | -11 -10 -10 ---------- Run | Scr Mat Min Machines Disabled 2 | . 2 . Max in Single Turn 1 | . 1 . Machines Sabotaged . | . . . Garrisons Compromised . | . . . Overloaded Fab Kills . | . . . Fab Network Shutdowns . | . . . Hacking | -11 -10 -10 --------- Run | Scr Mat Min Machines Accessed 3 | . 3 . Terminals 3 | . 3 . Fabricators . | . . . Repair Stations . | . . . Recycling Units . | . . . Scanalyzers . | . . . Garrison Access . | . . . Total Hacks 11 | . 11 . Successful 8 | . 8 . Failed 3 | . 3 . Catastrophic . | . . . Database Lockouts . | . . . Manual . | . . . Terminals 11 | . 11 . Fabricators . | . . . Repair Stations . | . . . Recycling Units . | . . . Scanalyzers . | . . . Garrison Access . | . . . Terminal Hacks 8 | . 8 . Record 4 | . 4 . Dispatch Records 1 | . 1 . Security Status 1 | . 1 . Investigation Status 1 | . 1 . Recall Investigation 1 | . 1 . Fabricator Hacks . | . . . Repair Station Hacks . | . . . Recycling Unit Hacks . | . . . Scanalyzer . | . . . Garrison Access Hacks . | . . . Unauthorized Hacks . | . . . Terminals . | . . . Fabricators . | . . . Repair Stations . | . . . Recycling Units . | . . . Scanalyzers . | . . . Garrison Access . | . . . Data Cores Recovered . | . . . Used . | . . . Hacking Detections 3 | . 3 . Full Trace Events 3 | . 3 . Feedback Events . | . . . Feedback Blocked . | . . . Robot Schematics Acquired . | . . . Robots Built . | . . . Matter . | . . . Time . | . . . Total Robot Build Rating . | . . . Part Schematics Acquired . | . . . Parts Built . | . . . Matter . | . . . Time . | . . . Total Part Build Rating . | . . . Parts Repaired . | . . . Time . | . . . Parts Recycled . | . . . Recycled Matter . | . . . Retrieved Matter . | . . . Retrieved Components . | . . . Parts Scanalyzed . | . . . Part Schematics Acquired . | . . . Parts Damaged . | . . . Bothacking | -11 -10 -10 ------------ Run | Scr Mat Min Used RIF Installer . | . . . Robots Hacked . | . . . Non-combat . | . . . Combat . | . . . Robot Hacks Applied . | . . . Relay Couplers Released . | . . . Robots Rewired . | . . . Allies Hacked . | . . . Hacks Repelled . | . . . Allies | -11 -10 -10 -------- Run | Scr Mat Min Total Allies . | . . . Largest Group . | . . . Highest-Rated Group . | . . . Highest-Rated Ally . | . . . Total Orders . | . . . Ally Attacks . | . . . Total Damage . | . . . Kills . | . . . Allies Corrupted . | . . . Allies Melted . | . . . Intel | -11 -10 -10 ------- Run | Scr Mat Min Robot Analysis Total . | . . . Derelict Logs Recovered . | . . . Drone Launches . | . . . Drone Recoveries . | . . . Exploration | -11 -10 -10 ------------- Run | Scr Mat Min Turns Passed 941 | 95 826 20 Spaces Moved 381 | 49 330 2 Core 6 | 6 . . Treads 375 | 43 330 2 Legs . | . . . Wheels . | . . . Hover . | . . . Flight . | . . . Fastest Speed 50 | 50 160 200 Average Speed 170 | 146 174 200 Slowest Speed 200 | 160 200 200 Overloaded Moves . | . . . Propulsion Burnouts . | . . . Robots Hopped . | . . . Cave-ins Triggered . | . . . Exploration Rate (%) 17 | 5 41 6 Regions Visited 2 Branch Regions 1 Pre-discovered Areas . | . . . Known Exits Taken . | . . . Unknown Exits Taken 2 | 1 1 . Scrap Searched . | . . . Spaces Dug 7 | . 7 . Terrain Destroyed 12 | 3 9 . Melee 7 | . 7 . Projectile . | . . . AOE 5 | 3 2 . Actions | -11 -10 -10 --------- Run | Scr Mat Min Total 530 | 64 457 9 Wait . | . . . Move 379 | 48 329 2 Hop . | . . . Pick Up 26 | 6 20 . Fast Attach . | . . . Attach 13 | 6 7 . Detach . | . . . Swap 4 | . 4 . Drop 7 | . 7 . Fire 79 | 4 73 2 Melee 22 | . 17 5 Ram . | . . . Kick . | . . . Crush . | . . . Escape Stasis . | . . . Rewire . | . . . Trap . | . . . Miscellaneous . | . . . Route ------- -11/Scrapyard -10/Materials -10/Mines History --------- Turn | Location | Event 2 | -11/Scrapyard | Met Revision 17 39 | -11/Scrapyard | Discovered new exit (range 16) 96 | -11/Scrapyard | Entered Materials 324 | -10/Materials | Build established: Mutant 726 | -10/Materials | Core integrity fell below 50% 754 | -10/Materials | Lost 3 parts (1p1n1w) 876 | -10/Materials | Discovered new exit (range 15) 922 | -10/Materials | Entered Mines 933 | -10/Mines | Core integrity fell below 20% 942 | -10/Mines | Destroyed by G-34 Mercenary with Small Laser Last Messages --------------- 00893_ Acquired Lgt. Treads. 00895_ Dropped Med. Storage Unit. 00895_ Dropped Aluminum Leg. 00899_ Acquired Transport Network Coupler. 00902_ Acquired 10 matter. 00902_ Triggered Explosive Trap. 00902_ An explosion rips through the floor. 00904_ U-05 Engineer lays Concrete. 00908_ Sneak attack on U-05 Engineer. 00908_ Destroyed Wheel. 00909_ U-05 Engineer lays Concrete. 00912_ Lgt. Treads destroyed. 00913_ U-05 Engineer lays Concrete. 00921_ U-05 Engineer builds a Wall. LOCATION=UNKNOWN GOAL=ESCAPE Something is scanning the area. 00925_ Sml. Laser destroyed. 00933_ Lgt. Nuclear Core ripped off. 00940_ Lgt. Nuclear Core destroyed. Map ----- +----------------------------------------------------+ | ??????????????????????????????????? | | ??????????????????????????????????? | | ??????????????????????????????????? | | ??????????????????????????????????? | | ??????????????????????????????????? | | ??????????????????????????????????? | | ??????????????????????????????????? | | ??????????????????????????????????? | | ??????????????????????????????????? | | ??????????????????????????????????? | | ??????????????????????????????????? | | ??????????????????????????????????? | | ??????????????????????????????????? | | ??????????????????????????????????? | | ??????????????????????????????????? | | ??????????????????????????????????? | | ?????????????????????????? ??????? | | ?????????????????????##### ###???? | | ???????????????????# #???? | | ???????????????????# """ """ #???? | | ???????????????????# """ """ #???? | | ???????????????????# """ """ #???? | | ???????????????????# #???? | | ???????????????????# """ #???? | | ???????????????????# """g #???? | | ???????????????????# """g@ #???? | | ???????????????????# #???? | | ???????????????????# #???? | | ???????????????????# #???? | | ???????????????????# T#??? | | ???????????????????#############??? | | ??????????????????????????????????? | | ??????????????????????????????????? | | | | | | | | | | | | | | | | | | | | | | | | | | | | | | | | | | | +----------------------------------------------------+ Best States ------------- Heat Dissipation 25 Energy Generation 14 Energy Capacity 350 Matter Stores 400 Matter Capacity 400 Sight Range 16 Terrain Scan Density 10 Resistance: KI 20 Resistance: TH 20 Resistance: EX 20 Resistance: EM 20 Resistance: I 20 Resistance: S 20 Resistance: P 20 Evasion (%) 40 Recoil Reduction 2 Offensive Hacking 10 Item Schematics ----------------- None Robot Schematics ------------------ None Fabricated ------------ Nothing Alien Tech Used ----------------- None Achievements -------------- None Challenges ------------ None Game ------ Seed DerelictGodNeutralizer Manual? 0 Play Time 00:05:28 Cumulative 10.2 hours Start 2020.06.16 @ 14:33:45 End 2020.06.16 @ 14:39:02 Sessions 1 Manual Loads 0 Difficulty Adventurer Special Mode None Game No. 20 Rogue 0 Adventurer 20 Explorer 0 Win Type - Total 0 Types 0/0/0/0/0/0/0 Lore% 12 Gallery% 28 Achievement% 19 Wizard Run 0 Options --------- ASCII 0 Keyboard 0 Movement Numpad Keybinds 0 Fullscreen 0 Font 12/Smallcaps Map View 83x54 Tactical HUD 1 Map Filters NONE Filters NONE Steam X RUN: f5f6a903-63b1-4ee3-9901-66efbe6d1faf